bitfinex-derivatives/quotes_BTCF0:USTF0_20210111
["timestamp","ask_amount","ask_price","bid_price","bid_amount"]
[1610351888282,0.09146,34399.0,34340.0,1.0]
[1610351888486,0.09146,34399.0,34359.0,0.18394]
[1610351889284,0.09146,34399.0,34373.0,0.13632608]
[1610351889883,1.0,34395.0,34378.0,1.0]
[1610351890885,0.641,34395.0,34378.0,0.709091]
[1610351891087,0.09146,34399.0,34373.0,0.13632608]
[1610351891287,0.09362,34408.0,34394.0,6.0]
[1610351891489,1.0,34428.0,34394.0,6.0]
[1610351892088,0.00035537,34427.0,34394.0,6.0]
[1610351892490,0.07020537,34427.0,34394.0,6.0]
[1610351892891,0.00035537,34426.0,34394.0,5.70843203]
[1610351893291,0.00035537,34426.0,34382.0,0.06948]
[1610351893793,0.13632608,34418.0,34407.0,0.13632608]
[1610351893993,0.00035537,34426.0,34407.0,0.13632608]
[1610351894191,0.06985,34427.0,34407.0,0.13632608]
[1610351894992,0.44688,34476.0,34407.0,0.13632608]
[1610351895196,1.0,34490.0,34426.0,6.0]
[1610351895397,0.3179,34487.0,34426.0,6.0]
[1610351895695,0.41823,34487.0,34426.0,7.5]
[1610351895894,0.00035488,34486.0,34479.0,0.13632608]
[1610351896096,0.10033,34487.0,34479.0,0.13632608]
[1610351896497,0.89253,34490.0,34479.0,0.13632608]
[1610351896698,0.80213,34490.0,34473.0,0.0872]
[1610351896898,0.0856,34536.0,34488.0,1.0]
[1610351897097,1.0,34637.0,34489.0,1.0867]
[1610351897297,4.62426798,34624.0,34489.0,1.0]
[1610351897498,3.2928,34592.0,34500.0,3.3657]
[1610351897699,3.2928,34592.0,34500.0,3.47896]
[1610351897898,0.0864,34580.0,34529.0,0.13632608]
[1610351898200,0.1541288,34515.0,34500.0,3.47896]
[1610351898600,0.1018,34526.0,34500.0,3.47896]
[1610351899801,0.1018,34526.0,34520.0,0.13632608]
[1610351900201,0.1018,34526.0,34500.0,3.47896]
[1610351901802,0.23812608,34526.0,34511.0,0.13632608]
[1610351902203,0.23812608,34526.0,34500.0,0.11326]
[1610351902803,0.23812608,34526.0,34498.0,0.0877]
[1610351903003,0.23812608,34526.0,34446.0,1.5]
[1610351903205,0.23812608,34526.0,34469.0,1.0]
[1610351903605,0.16092608,34526.0,34469.0,1.0]
[1610351903806,0.29035652,34527.0,34525.0,0.13632608]
[1610351904006,0.09886,34532.0,34525.0,0.13632608]
[1610351904407,0.00106,34532.0,34525.0,0.13632608]
[1610351905007,0.09796,34553.0,34525.0,0.13632608]
[1610351905207,0.02136,34553.0,34526.0,0.0855]
[1610351905607,6e-05,34553.0,34526.0,0.0855]
[1610351906610,6e-05,34553.0,34523.0,0.10808]
[1610351906811,0.10262,34553.0,34523.0,0.10808]
[1610351908211,0.13632608,34540.0,34536.0,0.13632608]
[1610351908411,0.10262,34553.0,34536.0,0.13632608]
[1610351908610,0.01852,34553.0,34536.0,0.13632608]
[1610351908810,0.0878,34625.0,34536.0,0.13632608]
[1610351909211,1.0,34593.0,34552.0,6.0]
[1610351909413,1.10057,34593.0,34552.0,5.70972526]
[1610351910013,0.10057,34593.0,34537.0,0.088]
[1610351910212,0.13632608,34581.0,34578.0,0.13632608]
[1610351910413,0.20973608,34581.0,34578.0,0.13632608]
[1610351910612,0.20973608,34581.0,34539.0,0.0863]
[1610351911013,0.07341,34581.0,34537.0,0.088]
[1610351911814,0.07341,34581.0,34535.0,3.6319]
[1610351913913,0.07341,34581.0,34536.0,0.0874]
[1610351914113,0.29000226,34569.0,34536.0,0.0874]
[1610351914313,0.40340226,34569.0,34536.0,0.0874]
[1610351914715,0.00731226,34581.0,34568.0,0.13632608]
[1610351914915,0.10057,34593.0,34568.0,0.13632608]
[1610351915114,0.05737,34593.0,34568.0,0.13632608]
[1610351915315,0.02117,34593.0,34568.0,0.13632608]
[1610351915518,0.0859,34638.0,34551.0,0.0873]
[1610351915718,0.0853,34654.0,34551.0,0.0873]
[1610351916719,0.0854,34629.0,34551.0,0.0873]
[1610351916919,0.1727,34623.0,34547.0,1.09431]
[1610351917119,0.1727,34623.0,34547.0,0.09431]
[1610351917321,4.44913,34617.0,34547.0,0.09431]
[1610351917519,4.44913,34617.0,34499.0,1.0]
[1610351918120,0.28986234,34585.0,34499.0,1.0]
[1610351918319,0.36067234,34585.0,34499.0,1.0]
[1610351918721,0.36067234,34585.0,34564.0,0.13632608]
[1610351918921,0.07081,34585.0,34531.0,0.10744]
[1610351919120,1.0,34575.0,34558.0,1.0]
[1610351919320,1.10165,34575.0,34558.0,0.934218]
[1610351919521,1.10165,34575.0,34558.0,1.0]
[1610351921944,0.10165,34575.0,34464.0,1.0]
[1610351922138,6.0,34559.0,34485.0,1.0]
[1610351922335,0.0776,34559.0,34479.0,0.0878]
[1610351922734,0.13632608,34491.0,34480.0,0.0002]
[1610351923126,0.13632608,34491.0,34472.0,0.0002]
[1610351923526,0.13632608,34491.0,34465.0,0.0858]
[1610351923727,0.13632608,34491.0,34451.0,0.0879]
[1610351924226,0.13632608,34491.0,34458.0,0.0002]
[1610351924426,0.11357,34496.0,34458.0,0.1064]
[1610351924627,0.11357,34496.0,34458.0,0.09149]
[1610351924826,0.11357,34496.0,34495.0,0.13632608]
[1610351925027,0.29062012,34495.0,34463.0,0.0858]
[1610351925628,0.29062012,34495.0,34464.0,0.0002]
[1610351926029,0.29062012,34495.0,34462.0,0.0865]
[1610351926230,0.11357,34496.0,34462.0,0.0865]
[1610351926429,0.11357,34496.0,34458.0,0.09149]
[1610351926829,0.13632608,34478.0,34458.0,0.09149]
[1610351927230,0.23833608,34478.0,34458.0,0.09149]
[1610351928435,0.10201,34478.0,34458.0,0.09149]
[1610351928835,0.06292,34488.0,34477.0,0.13632608]
[1610351929035,0.07509,34507.0,34477.0,0.13632608]
[1610351929234,0.29060112,34497.0,34477.0,0.13632608]
[1610351929435,0.36925112,34497.0,34477.0,0.13632608]
[1610351929836,0.07865,34497.0,34477.0,0.13632608]
[1610351930337,0.07865,34497.0,34496.0,1.0]
[1610351930938,0.07865,34497.0,34496.0,1.13632608]
[1610351931137,0.95695,34514.0,34496.0,1.13632608]
[1610351931538,0.13632608,34518.0,34496.0,1.13632608]
[1610351931738,0.13632608,34518.0,34496.0,1.0]
[1610351932941,0.13632608,34497.0,34496.0,1.0]
[1610351933341,0.13632608,34497.0,34495.0,0.13632608]
[1610351933541,0.13632608,34497.0,34496.0,1.0]
[1610351935344,0.09325,34500.0,34496.0,1.0]
[1610351935542,0.25688322,34506.0,34483.0,0.0875]
[1610351935743,4.5504,34546.0,34483.0,0.0875]
[1610351936043,4.5504,34546.0,34475.0,0.00369708]
[1610351936243,4.5504,34546.0,34472.0,4.2864]
[1610351936444,4.62559,34546.0,34476.0,0.0002]
[1610351936644,4.62559,34546.0,34473.0,0.0002]
[1610351936844,0.13632608,34502.0,34491.0,0.13632608]
[1610351937043,0.10473,34508.0,34492.0,0.0877]
[1610351937444,0.05463,34508.0,34492.0,0.0877]
[1610351937946,4.62559,34546.0,34492.0,0.0877]
[1610351938946,0.13632608,34531.0,34492.0,0.0877]
[1610351939346,0.24770608,34531.0,34492.0,0.0877]
[1610351939546,0.24770608,34531.0,34515.0,5.0]
[1610351940848,0.24770608,34531.0,34526.0,0.13632608]
[1610351941247,0.24770608,34531.0,34515.0,5.0]
[1610351941248,0.24490608,34531.0,34515.0,5.0]
[1610351941449,0.24490608,34531.0,34509.0,0.0876]
[1610351941650,0.24490608,34531.0,34507.0,0.10269]
[1610351941850,0.24490608,34531.0,34451.0,1.0]
[1610351942450,0.24490608,34531.0,34492.0,0.011749]
[1610351942851,0.13632608,34493.0,34492.0,0.14807508]
[1610351943053,0.13632608,34493.0,34492.0,0.011749]
[1610351944351,0.42696672,34493.0,34492.0,0.011749]
[1610351945453,0.13632608,34493.0,34492.0,0.011749]
[1610351945955,0.08455,34520.0,34492.0,0.011749]
[1610351946454,0.03381608,34546.0,34492.0,0.011749]
[1610351946654,0.3179,34567.0,34492.0,0.011749]
[1610351947256,4.4248,34565.0,34486.0,3.46738]
[1610351947455,0.29063783,34493.0,34486.0,0.09898]
[1610351947855,0.26683783,34493.0,34486.0,0.09898]
[1610351948056,0.09845,34528.0,34486.0,0.09898]
[1610351948257,0.03045,34528.0,34486.0,0.09898]
[1610351948455,0.1556,34552.0,34486.0,0.09898]
[1610351948655,0.07372,34553.0,34486.0,0.09898]
[1610351948855,0.07372,34553.0,34532.0,0.13632608]
[1610351949956,0.07372,34553.0,34508.0,0.09426]
[1610351950356,0.07372,34553.0,34509.0,0.0858]
[1610351950557,2e-05,34553.0,34509.0,0.0858]
[1610351950956,0.15391121,34541.0,34509.0,0.0858]
[1610351951556,0.14651121,34541.0,34540.0,1.0]
[1610351952256,0.14651121,34541.0,34540.0,0.3688]
[1610351952659,0.14651121,34541.0,34442.0,1.0]
[1610351952859,0.13632608,34514.0,34513.0,0.13632608]
[1610351953062,0.13632608,34514.0,34488.0,0.2923]
[1610351953261,0.09911,34528.0,34488.0,0.2923]
[1610351954462,0.09911,34528.0,34506.0,0.07113]
[1610351954863,0.13632608,34507.0,34506.0,0.07113]
[1610351956664,1.0,34510.0,34506.0,0.07113]
[1610351956865,0.13632608,34507.0,34506.0,0.07113]
[1610351958066,0.12082608,34507.0,34506.0,0.07113]
[1610351958266,1.0,34510.0,34506.0,0.07113]
[1610351958667,4.6453,34516.0,34506.0,0.07113]
[1610351958866,0.13632608,34507.0,34506.0,0.07113]
[1610351959466,0.13632608,34507.0,34488.0,0.2923]
[1610351960568,1.0,34489.0,34488.0,0.2923]
[1610351960867,1.13632608,34489.0,34488.0,0.2923]
[1610351961667,0.96132608,34489.0,34488.0,0.2923]
[1610351962067,0.13632608,34489.0,34488.0,0.2923]
[1610351965270,0.13632608,34489.0,34488.0,0.044228]
[1610351965470,0.29061161,34496.0,34488.0,0.044228]
[1610351965670,0.10761161,34496.0,34477.0,0.13632608]
[1610351965871,1.0,34549.0,34480.0,0.0875]
[1610351966071,1.0,34532.0,34495.0,6.0]
[1610351966273,1.0,34532.0,34495.0,6.0914]
[1610351966873,0.13632608,34499.0,34495.0,6.0914]
[1610351968073,0.07578,34516.0,34495.0,0.0914]
[1610351968273,0.00308,34516.0,34495.0,0.0914]
[1610351968472,0.3179,34560.0,34495.0,0.0914]
[1610351968875,1.1556,34570.0,34505.0,0.13632608]
[1610351970074,1.0,34520.0,34505.0,0.13632608]
[1610351970273,1.0,34520.0,34503.0,1.0]
[1610351970478,1.06988,34520.0,34503.0,1.0]
[1610351970874,0.13632608,34504.0,34503.0,1.0]
[1610351971976,0.13632608,34504.0,34495.0,0.0914]
[1610351972175,0.13632608,34504.0,34472.0,0.2702]
[1610351972976,0.10578,34513.0,34481.0,0.10487108]
[1610351973176,0.10578,34513.0,34481.0,0.18411108]
[1610351974075,1.0,34494.0,34481.0,0.18411108]
[1610351974676,0.9302,34494.0,34481.0,0.18411108]
[1610351975078,0.29055041,34503.0,34493.0,0.13632608]
[1610351975276,0.29055041,34503.0,34493.0,0.23006608]
[1610351975876,0.10578,34513.0,34493.0,0.23006608]
[1610351976777,4.1157,34519.0,34493.0,0.23006608]
[1610351976980,1.0,34508.0,34497.0,0.13632608]
[1610351977177,0.924,34508.0,34497.0,0.13632608]
[1610351977377,0.924,34508.0,34493.0,0.09374]
[1610351977578,4.284,34517.0,34493.0,0.09374]
[1610351977980,0.29044614,34516.0,34493.0,0.09374]
[1610351978880,4.284,34517.0,34493.0,0.09374]
[1610351979080,0.13632608,34494.0,34493.0,0.09374]
[1610351979281,0.13632608,34494.0,34493.0,0.08761]
[1610351979482,0.13632608,34494.0,34493.0,0.010007]
[1610351980081,0.10602,34509.0,34493.0,0.010007]
[1610351980281,0.10602,34509.0,34482.0,0.087]
[1610351980681,4.284,34517.0,34482.0,0.087]
[1610351981081,4.284,34517.0,34490.0,0.13632608]
[1610351981381,4.284,34517.0,34482.0,0.087]
[1610351981881,4.284,34517.0,34481.0,0.07924]
[1610351982083,0.29048685,34511.0,34481.0,0.07924]
[1610351982281,0.29048685,34511.0,34472.0,0.0875]
[1610351982981,0.13632608,34480.0,34479.0,0.13632608]
[1610351983181,0.13632608,34480.0,34472.0,0.0875]
[1610351983381,0.09252608,34480.0,34472.0,0.0875]
[1610351984986,0.09252608,34480.0,34479.0,0.13632608]
[1610351985184,0.09252608,34480.0,34479.0,0.07654]
[1610351987487,0.09252608,34480.0,34479.0,1.07654]
[1610351989586,0.09252608,34480.0,34479.0,0.07654]
[1610351989587,1.09252608,34480.0,34479.0,0.07654]
[1610351990187,1.09252608,34480.0,34467.0,0.07958]
[1610351990386,1.09252608,34480.0,34467.0,0.050785]
[1610351990587,1.09252608,34480.0,34458.0,1.0]
[1610351991088,0.13632608,34460.0,34458.0,1.0]
[1610351991489,1.0,34481.0,34459.0,1.0]
[1610351991689,1.0,34481.0,34459.0,1.08157]
[1610351991989,1.0,34481.0,34459.0,0.820333]
[1610351992190,1.0,34481.0,34460.0,0.0879]
[1610351992389,3.7489,34493.0,34475.0,1.0]
[1610351992390,1.0,34492.0,34475.0,1.0]
[1610351993090,1.0,34492.0,34477.0,0.13632608]
[1610351993690,1.0,34492.0,34475.0,1.0]
[1610351994592,1.0,34476.0,34474.0,0.08801]
[1610351995192,0.13632608,34475.0,34474.0,0.08801]
[1610351996194,0.13632608,34475.0,34459.0,0.08157]
[1610351996795,0.13632608,34475.0,34372.0,0.2854]
[1610351996995,0.116465,34389.0,34372.0,0.2854]
[1610351997196,0.13632608,34430.0,34388.0,0.13632608]
[1610351997396,0.13632608,34430.0,34388.0,0.13652608]
[1610351997596,0.13632608,34430.0,34388.0,0.22963608]
[1610351997796,0.13632608,34430.0,34389.0,0.0002]
[1610351997997,0.11278,34486.0,34389.0,0.0002]
[1610351998196,0.29086693,34466.0,34389.0,0.0002]
[1610351998595,0.38183693,34466.0,34389.0,0.0002]
[1610351999095,0.13632608,34439.0,34438.0,0.13632608]
[1610351999497,0.13632608,34439.0,34403.0,0.0862]
[1610352000097,0.13632608,34439.0,34404.0,0.0002]
[1610352000298,0.13632608,34439.0,34404.0,0.0748]
[1610352000698,0.09097,34466.0,34404.0,0.0748]
[1610352000898,0.09097,34466.0,34405.0,0.0002]
[1610352001099,0.09097,34466.0,34451.0,0.13632608]
[1610352001298,0.09097,34466.0,34445.0,0.07176]
[1610352001900,0.09097,34466.0,34431.0,0.0871]
[1610352002100,0.10401,34474.0,34431.0,0.0871]
[1610352002301,0.2908813,34464.0,34431.0,0.18888]
[1610352002701,0.2908813,34464.0,34432.0,0.0002]
[1610352002903,0.10401,34474.0,34432.0,0.0002]
[1610352003102,0.13632608,34468.0,34461.0,0.13632608]
[1610352004104,0.12812608,34468.0,34461.0,0.13632608]
[1610352005305,0.13632608,34462.0,34461.0,0.13632608]
[1610352006506,0.13632608,34462.0,34435.0,0.0859]
[1610352007208,0.13132608,34462.0,34435.0,0.0859]
[1610352007409,0.13632608,34455.0,34452.0,0.13632608]
[1610352007608,0.13632608,34455.0,34453.0,0.0868]
[1610352007807,0.13632608,34455.0,34453.0,0.18977]
[1610352008007,0.12632608,34455.0,34453.0,0.18977]
[1610352008810,0.05382608,34455.0,34453.0,0.18977]
[1610352009412,0.05382608,34455.0,34454.0,0.13632608]
[1610352009611,0.29080056,34474.0,34454.0,0.13632608]
[1610352010213,0.1556,34495.0,34454.0,0.13632608]
[1610352011013,0.1556,34495.0,34453.0,0.18977]
[1610352011415,0.13632608,34454.0,34453.0,0.18977]
[1610352012014,0.1556,34495.0,34453.0,0.18977]
[1610352012214,0.29083253,34470.0,34462.0,1.0]
[1610352012615,0.27323253,34470.0,34462.0,1.0]
[1610352012816,1.0,34479.0,34462.0,1.0]
[1610352013018,1.0,34479.0,34462.0,1.10213]
[1610352013419,0.13632608,34463.0,34462.0,1.10213]
[1610352014317,1.13632608,34463.0,34462.0,0.10213]
[1610352015421,1.13632608,34463.0,34438.0,0.13632608]
[1610352016222,0.13632608,34463.0,34432.0,0.2939]
[1610352017423,0.086,34471.0,34436.0,0.13632608]
[1610352017822,0.00035466,34470.0,34432.0,0.2939]
[1610352018023,0.086,34471.0,34432.0,0.2939]
[1610352018422,0.29088462,34464.0,34432.0,0.2939]
[1610352018624,1.0,34448.0,34432.0,0.2939]
[1610352019425,1.0,34448.0,34447.0,0.13632608]
[1610352019624,1.0,34448.0,34447.0,0.24495608]
[1610352020525,0.29094182,34457.0,34447.0,0.24495608]
[1610352021127,0.13632608,34465.0,34447.0,0.24495608]
[1610352021526,0.13632608,34457.0,34447.0,0.24495608]
[1610352022128,0.13632608,34457.0,34447.0,0.10863]
[1610352022325,0.13632608,34457.0,34432.0,0.2939]
[1610352022525,0.11401,34474.0,34432.0,0.2939]
[1610352023526,0.11401,34474.0,34450.0,0.13632608]
[1610352023727,0.11401,34474.0,34450.0,0.22176608]
[1610352024630,1.0,34464.0,34450.0,0.22176608]
[1610352025529,1.0,34464.0,34463.0,0.13632608]
[1610352026631,0.11401,34474.0,34463.0,0.13632608]
[1610352027237,0.07091088,34532.0,34463.0,0.13632608]
[1610352027632,0.13632608,34514.0,34494.0,0.13632608]
[1610352027932,0.23223608,34514.0,34494.0,0.13632608]
[1610352028134,0.29052182,34507.0,34457.0,0.10503]
[1610352028333,0.40340182,34507.0,34457.0,0.10503]
[1610352028533,0.00035447,34506.0,34457.0,0.10503]
[1610352029536,0.13632608,34463.0,34457.0,0.10503]
[1610352030334,0.09704,34484.0,34457.0,0.10503]
[1610352030936,0.0003546,34483.0,34457.0,0.10503]
[1610352031536,0.0003546,34483.0,34482.0,0.13632608]
[1610352031935,0.1544069,34482.0,34468.0,0.07934]
[1610352032436,0.2518369,34482.0,34468.0,0.07934]
[1610352032638,0.00035457,34481.0,34476.0,1.0]
[1610352034536,0.00035457,34481.0,34457.0,0.10503]
[1610352034737,0.00035457,34481.0,34450.0,0.08544]
[1610352034937,0.00035457,34481.0,34406.0,1.0]
[1610352035137,0.00035457,34481.0,34432.0,0.0002]
[1610352035337,0.00035457,34481.0,34432.0,0.08746]
[1610352035538,0.13632608,34452.0,34451.0,0.13632608]
[1610352036138,0.09743,34482.0,34451.0,0.13632608]
[1610352036338,0.09743,34482.0,34451.0,0.22743608]
[1610352036540,0.09743,34482.0,34451.0,6.22743608]
[1610352036738,0.00035469,34481.0,34451.0,6.22743608]
[1610352037541,0.00035469,34481.0,34474.0,0.13632608]
[1610352038843,0.09743,34482.0,34433.0,0.28188]
[1610352039045,0.0871,34491.0,34433.0,0.28188]
[1610352039243,0.00035468,34480.0,34433.0,0.28188]
[1610352039442,0.08452,34480.0,34434.0,0.0002]
[1610352039644,0.00035475,34479.0,34447.0,0.13632608]
[1610352040645,0.00035475,34479.0,34466.0,1.0]
[1610352042450,0.08452,34480.0,34466.0,1.0]
[1610352042650,0.08452,34480.0,34476.0,1.0]
[1610352043552,0.08452,34480.0,34479.0,0.13632608]
[1610352044555,0.23051,34495.0,34479.0,0.13632608]
[1610352044756,0.31841,34495.0,34465.0,0.06885]
[1610352044956,0.00035476,34494.0,34465.0,0.06885]
[1610352045155,0.00035476,34494.0,34457.0,0.08194]
[1610352045555,0.13632608,34461.0,34457.0,0.08194]
[1610352045755,0.13632608,34461.0,34456.0,0.13632608]
[1610352045756,0.10215,34479.0,34456.0,0.13632608]
[1610352046155,0.10215,34479.0,34456.0,0.24402608]
[1610352046355,0.00035482,34478.0,34456.0,0.24402608]
[1610352047459,0.00035482,34478.0,34456.0,0.01046908]
[1610352047659,0.13632608,34457.0,34456.0,0.01046908]
[1610352048058,0.13632608,34457.0,34433.0,0.23584908]
[1610352048660,0.10215,34479.0,34433.0,0.23584908]
[1610352049160,0.00035482,34478.0,34434.0,0.0002]
[1610352049560,0.00035482,34478.0,34452.0,0.13632608]
[1610352049761,0.00035482,34478.0,34452.0,0.21134608]
[1610352049960,0.00035482,34478.0,34452.0,0.07502]
[1610352050761,0.29079576,34474.0,34452.0,0.07502]
[1610352051062,0.00035484,34473.0,34452.0,0.07502]
[1610352051663,0.13632608,34453.0,34452.0,0.07502]
[1610352054573,0.13632608,34453.0,34452.0,1.07502]
[1610352056574,0.13632608,34453.0,34452.0,0.07502]
[1610352056773,0.13632608,34453.0,34449.0,0.13632608]
[1610352058875,0.13632608,34453.0,34433.0,0.23584908]
[1610352059680,0.08058,34472.0,34433.0,0.23584908]
[1610352060080,0.00035499,34471.0,34433.0,0.23584908]
[1610352060480,1.0,34466.0,34449.0,1.0]
[1610352060879,0.00035499,34465.0,34449.0,0.805]
[1610352061079,6.0,34450.0,34432.0,0.08726]
[1610352061279,6.0,34450.0,34412.0,1.0]
[1610352061280,0.08174,34451.0,34381.0,0.0881]
[1610352061483,0.08174,34451.0,34381.0,0.1835]
[1610352061680,0.13632608,34404.0,34381.0,0.1835]
[1610352061881,0.13632608,34404.0,34382.0,0.0002]
[1610352062081,0.13632608,34404.0,34393.0,0.0002]
[1610352062284,0.13632608,34404.0,34393.0,0.08667]
[1610352062481,0.13632608,34404.0,34393.0,0.08647]
[1610352062881,0.13632608,34404.0,34394.0,0.0002]
[1610352063081,0.07243,34435.0,34394.0,0.0002]
[1610352063283,1.0,34425.0,34403.0,1.0]
[1610352063482,1.0803,34425.0,34403.0,1.0]
[1610352065386,0.0803,34425.0,34404.0,0.0002]
[1610352065587,0.0803,34425.0,34424.0,0.13632608]
[1610352065786,0.0803,34425.0,34404.0,0.08845]
[1610352066389,0.0803,34425.0,34405.0,0.0002]
[1610352066588,0.13632608,34431.0,34405.0,0.0002]
[1610352067093,0.07243,34435.0,34405.0,0.0002]
[1610352067293,0.09568,34442.0,34405.0,0.0002]
[1610352067492,1.6556,34495.0,34405.0,0.0002]
[1610352067693,0.13632608,34431.0,34412.0,0.13632608]
[1610352069092,0.07078,34435.0,34412.0,0.13632608]
[1610352069692,0.07078,34435.0,34434.0,0.13632608]
[1610352071091,0.07078,34435.0,34429.0,1.0]
[1610352071692,0.13632608,34430.0,34413.0,0.13632608]
[1610352072294,0.07078,34435.0,34413.0,0.13632608]
[1610352072497,4.7014,34449.0,34413.0,0.13632608]
[1610352073697,0.13632608,34437.0,34431.0,0.13632608]
[1610352074097,0.13632608,34437.0,34428.0,1.0]
[1610352074698,0.13632608,34437.0,34428.0,0.933]
[1610352074898,1.13632608,34437.0,34420.0,1.0]
[1610352075398,1.13632608,34437.0,34420.0,0.872]
[1610352075598,1.0,34437.0,34424.0,0.13632608]
[1610352075798,4.7014,34449.0,34424.0,0.22288608]
[1610352075998,4.7014,34449.0,34424.0,0.08656]
[1610352077001,4.7014,34449.0,34411.0,0.09878]
[1610352077200,4.7014,34449.0,34397.0,3.97585]
[1610352077401,4.1932,34426.0,34405.0,0.0002]
[1610352077602,0.13632608,34406.0,34405.0,0.0002]
[1610352077801,0.13632608,34406.0,34398.0,0.13632608]
[1610352077802,1.0,34405.0,34398.0,0.13632608]
[1610352078800,1.0,34405.0,34384.0,1.0]
[1610352079601,0.13632608,34385.0,34384.0,1.0]
[1610352079801,0.13632608,34385.0,34375.0,4.3102]
[1610352080400,0.13632608,34385.0,34296.0,1.0]
[1610352080601,4.1461,34359.0,34312.0,4.2348]
[1610352080800,4.1461,34359.0,34342.0,0.0002]
[1610352081000,4.1461,34359.0,34342.0,0.09743]
[1610352081402,4.1461,34359.0,34343.0,0.0002]
[1610352081603,4.1461,34359.0,34342.0,0.09723]
[1610352081804,1.13632608,34344.0,34342.0,0.09723]
[1610352082004,1.13632608,34344.0,34323.0,1.0]
[1610352082403,1.13632608,34344.0,34324.0,0.0002]
[1610352082404,1.0,34344.0,34324.0,0.0002]
[1610352082607,1.0,34344.0,34324.0,0.07037]
[1610352082806,1.0,34344.0,34324.0,0.002164]
[1610352083803,0.07121,34359.0,34325.0,0.0002]
[1610352084003,0.0863,34418.0,34325.0,0.0002]
[1610352084903,0.0859,34404.0,34325.0,0.0002]
[1610352085304,0.0873,34408.0,34325.0,0.0002]
[1610352085704,0.13632608,34374.0,34363.0,1.0]
[1610352087206,0.10786,34380.0,34363.0,1.0]
[1610352087405,0.10786,34380.0,34363.0,1.10695]
[1610352087605,1.0,34381.0,34363.0,1.10695]
[1610352087806,0.29154539,34386.0,34380.0,0.13632608]
[1610352088008,0.0878,34458.0,34380.0,0.13632608]
[1610352089406,0.0878,34458.0,34377.0,0.1062]
[1610352089608,0.0931,34458.0,34377.0,0.1062]
[1610352089807,1.0,34437.0,34425.0,0.13632608]
[1610352090007,4.3024,34430.0,34425.0,0.13632608]
[1610352090208,4.4096,34430.0,34425.0,0.13632608]
[1610352091208,4.3024,34430.0,34425.0,0.13632608]
[1610352091808,4.3024,34430.0,34429.0,1.0]
[1610352092411,4.43872608,34430.0,34429.0,1.0]
[1610352092610,4.43872608,34430.0,34429.0,0.9301]
[1610352093012,4.43872608,34430.0,34424.0,5.0]
[1610352093013,10.43872608,34430.0,34404.0,0.09895]
[1610352093214,10.52562608,34430.0,34404.0,0.09895]
[1610352093612,10.52562608,34430.0,34404.0,5e-05]
[1610352094012,10.52562608,34430.0,34389.0,1.0]
[1610352094215,10.3893,34430.0,34389.0,1.0]
[1610352094713,0.13632608,34390.0,34389.0,1.0]
[1610352094914,0.13632608,34390.0,34384.0,0.13632608]
[1610352095115,0.13632608,34390.0,34380.0,1.0]
[1610352096716,0.06931,34392.0,34380.0,1.0]
[1610352096916,0.06931,34392.0,34363.0,0.10695]
[1610352097321,0.06931,34392.0,34364.0,1.5]
[1610352097519,0.09467,34410.0,34364.0,1.5]
[1610352097718,3.9467,34401.0,34364.0,1.5]
[1610352097919,0.09467,34410.0,34377.0,0.0002]
[1610352098523,0.09467,34410.0,34409.0,0.13632608]
[1610352099321,0.09467,34410.0,34401.0,1.0]
[1610352099721,1.0,34418.0,34401.0,1.0]
[1610352099921,1.0,34418.0,34401.0,1.09103]
[1610352100721,1.13632608,34418.0,34401.0,1.09103]
[1610352100921,0.13632608,34418.0,34407.0,1.0]
[1610352101322,1.0,34425.0,34407.0,1.0]
[1610352103024,0.0869,34430.0,34419.0,1.0]
[1610352103223,1.0,34436.0,34419.0,1.0]
[1610352103925,0.2911432,34433.0,34419.0,1.0]
[1610352104127,0.4039032,34433.0,34419.0,1.0]
[1610352104625,0.13632608,34422.0,34419.0,1.0]
[1610352105026,0.13632608,34422.0,34364.0,1.46680608]
[1610352105529,0.13632608,34422.0,34365.0,0.0877]
[1610352105729,0.13632608,34422.0,34365.0,0.0879]
[1610352105928,0.11276,34433.0,34365.0,0.0879]
[1610352105929,0.11276,34433.0,34366.0,0.0002]
[1610352106327,0.29095958,34455.0,34366.0,0.0002]
[1610352106727,0.13632608,34432.0,34366.0,0.0002]
[1610352106928,0.13632608,34432.0,34369.0,1.0]
[1610352107129,0.13632608,34432.0,34370.0,1.46680608]
[1610352107328,0.13632608,34432.0,34370.0,1.54802608]
[1610352107529,0.13632608,34432.0,34378.0,3.5234]
[1610352107729,0.13632608,34432.0,34379.0,1.55390608]
[1610352107930,0.13632608,34432.0,34379.0,1.55410608]
[1610352108329,0.13632608,34432.0,34380.0,0.0002]
[1610352110732,0.13632608,34423.0,34399.0,0.13632608]
[1610352112736,0.1556,34440.0,34419.0,0.13632608]
[1610352112938,0.11004,34441.0,34419.0,0.13632608]
[1610352113137,4.6975,34459.0,34419.0,0.13632608]
[1610352113738,0.29101757,34448.0,34419.0,0.13632608]
[1610352113939,0.38665757,34448.0,34419.0,0.13632608]
[1610352114338,0.09564,34448.0,34419.0,0.13632608]
[1610352114639,0.09564,34448.0,34436.0,0.13632608]
[1610352114838,0.09564,34448.0,34416.0,0.10414]
[1610352116639,0.13632608,34420.0,34416.0,0.10414]
[1610352117241,0.08382,34439.0,34416.0,0.10414]
[1610352117943,0.08382,34439.0,34388.0,1.5]
[1610352118143,0.08382,34439.0,34385.0,0.087]
[1610352118443,0.08382,34439.0,34389.0,0.0002]
[1610352118643,0.13632608,34434.0,34427.0,0.13632608]
[1610352120247,0.13632608,34434.0,34421.0,5.0]
[1610352121048,0.13632608,34434.0,34412.0,0.13632608]
[1610352121249,0.13632608,34434.0,34389.0,0.09468]
[1610352122650,0.13632608,34390.0,34389.0,0.09468]
[1610352123051,0.13632608,34390.0,34381.0,0.13632608]
[1610352123951,0.07598,34390.0,34381.0,0.13632608]
[1610352124652,0.07598,34390.0,34389.0,0.13632608]